Cogmind - Beta 14 @@@ ROGUE MODE // 2024.08.22 @ 21:57:22 Player: CONM Result: Destroyed by H-71 Marshal with Heavy Mass Driver Performance ------------- Evolutions (5) 2500 Regions Visited (12) 2400 Robots Destroyed (70) 350 Value Destroyed (1941) 1941 Prototype IDs (20) 400 Alien Tech Used (0) 0 Bonus (806) 806 TOTAL SCORE: 8397 Bonus ------- High Alert Combat Kills 6 Entered DSFs 500 Met Data Miner 300 Cogmind --------- Core Integrity 0/1000 Matter 240/300 Energy 98/100 System Corruption 1% Temperature Cool (0) Movement Core (50) Location -5/DSF Parts ------- > --- POWER (1) -------- (None) > --- PROPULSION (5) --- (None) > --- UTILITY (7) ------ (None) > --- WEAPON (4) ------- (None) > --- INVENTORY (5) ---- Micro Fission Core Peak State ------------ > --- POWER ------------ Nuclear-Backup Core > --- PROPULSION ------- Light Treads Light Treads Hovering Antigrav-CIT Exoskeleton > --- UTILITY ---------- Armored Scrap Engine Large Storage Unit Signal Interpreter Light Armor Plating > --- WEAPON ----------- Precision Rocket Launcher Rapid Kinetic Assault Construct/C Energy Phase Construct/C > --- INVENTORY -------- Ion Engine Cooled Ion Engine Improved Heat Sink Improved Cooling System Huge Storage Unit Compact Matter Pod Structural Scanner Machine Analyzer Makeshift Terrain Scan Processor Recoil Stabilizer Matter Filter Kinecellerator Tractor Beam [Rating: 51] Favorites ----------- Power Ion Engine Engine Ion Engine Power Core Constructs Propulsion Light Treads Treads Light Treads Hover Unit Constructs Utility Large Storage Unit Device Armored Scrap Engine Storage Large Storage Unit Processor Visual Processing Unit Hackware Hacking Suite Protection Light Armor Plating Weapon Enhanced Autogun Ballistic Gun Enhanced Autogun Ballistic Cannon Constructs Launcher Precision Rocket Launcher Impact Weapon Heavy Flail Slashing Weapon Great Axe Build | -11 -10 -9 -9 -9 -7 -7 -7 -7 -6 -6 -5 -5 ------- Run | Yrd Mat Mat Sto Rec Fac Low Low Dat Pro Fac Fac DSF Slots Evolved 10 | . . 2 . . 4 . . . . 2 2 . Power . | . . . . . . . . . . . . . Propulsion 3 | . . . . . 2 . . . . . 1 . Utility 5 | . . 2 . . 1 . . . . 1 1 . Weapon 2 | . . . . . 1 . . . . 1 . . Parts Attached 66 | 8 1 7 22 9 3 1 2 . 2 6 1 4 Power 8 | 2 . 1 2 1 . . 1 . 1 . . . Engine 8 | 2 . 1 2 1 . . 1 . 1 . . . Core . | . . . . . . . . . . . . . Reactor . | . . . . . . . . . . . . . Propulsion 13 | 2 . 2 5 1 2 . . . 1 . . . Treads 13 | 2 . 2 5 1 2 . . . 1 . . . Leg . | . . . . . . . . . . . . . Wheel . | . . . . . . . . . . . . . Hover . | . . . . . . . . . . . . . Flight . | . . . . . . . . . . . . . Utility 23 | 2 1 2 7 2 1 1 . . . 4 1 2 Device 8 | 1 . 1 2 1 . . . . . 1 1 1 Storage 5 | 1 1 . 2 . . . . . . . . 1 Processor 7 | . . 1 1 . 1 1 . . . 3 . . Hackware 1 | . . . 1 . . . . . . . . . Protection 2 | . . . 1 1 . . . . . . . . Artifact . | . . . . . . . . . . . . . Weapon 22 | 2 . 2 8 5 . . 1 . . 2 . 2 Energy Gun . | . . . . . . . . . . . . . Energy Cannon . | . . . . . . . . . . . . . Ballistic Gun 14 | 2 . 2 4 5 . . . . . . . 1 Ballistic Cannon 1 | . . . 1 . . . . . . . . . Launcher 4 | . . . 3 . . . 1 . . . . . Special Weapon . | . . . . . . . . . . . . . Impact Weapon 2 | . . . . . . . . . . 1 . 1 Slashing Weapon 1 | . . . . . . . . . . 1 . . Piercing Weapon . | . . . . . . . . . . . . . Special Melee Weapon . | . . . . . . . . . . . . . Unidentified Prototypes 5 | . . 1 2 1 . . . . 1 . . . Parts Lost 25 | . . 5 1 2 1 . 3 . 7 1 . 5 Power 6 | . . 2 . 1 . . 2 . 1 . . . Propulsion 7 | . . . 1 1 1 . . . 3 . . 1 Utility 8 | . . 2 . . . . 1 . . 1 . 4 Weapon 4 | . . 1 . . . . . . 3 . . . Highest Loss Streak 5 | . . 3 1 2 1 . 1 . 3 1 . 5 To Critical Strikes 1 | . . 1 . . . . . . . . . . Average Slot Usage (%) 75 | . 100 79 98 91 74 79 72 53 40 32 29 15 Engine 6 | . 14 10 11 10 7 3 . . 4 . . . Core 1 | . . . . . . 3 6 . . . . . Treads 16 | . 28 22 21 20 22 18 13 7 6 . . . Leg 1 | . . . . . 1 7 5 . . . . . Device 6 | . 14 10 2 2 7 7 7 7 7 13 11 4 Storage 8 | . 14 11 12 11 7 7 7 7 6 . . 1 Processor 10 | . . 4 18 19 3 6 7 7 7 16 17 5 Hackware 1 | . . . . 8 . . . . . . . . Protection 4 | . . . 9 . 7 7 5 . . . . . Ballistic Gun 11 | . 28 21 20 12 7 7 7 7 1 . . . Ballistic Cannon 2 | . . . . . 6 7 7 7 2 . . . Launcher 1 | . . . 1 5 . . 1 7 1 . . . Peak Build Rating 51 | 7 8 16 23 33 44 45 51 47 47 41 43 38 Average Rating 29 | 5 7 12 19 22 37 44 45 47 35 36 37 21 On Entrance 27 | . 7 8 15 23 31 44 43 47 47 22 35 38 Naked Turns 3 | . . . . . . . . . . . . 3 Heaviest Build 42 | 14 29 30 42 36 35 35 41 35 35 10 2 8 Greatest Support 72 | 40 40 40 40 40 60 60 52 52 72 3 3 5 Greatest Overweight (x) 3 | . . . 1 1 . . 1 . 1 3 . 2 Average Overweight (x) . | . . . . . . . . . . . . . Largest Inventory Capacity 15 | 8 15 15 15 15 15 15 15 15 15 5 5 5 Average Capacity 13 | 6 13 15 15 15 15 15 15 15 14 5 5 5 Most Carried 15 | 4 10 15 15 15 11 14 14 13 13 5 5 5 Average Carried 11 | 2 5 13 14 14 8 11 13 13 11 4 4 3 Final Capacity 15 | 8 15 15 15 15 15 15 15 15 5 5 5 5 Final Carried 15 | 4 10 14 15 8 11 13 13 13 5 5 5 1 Scrap Engine Consumption 40 | . . . . 10 8 2 8 . . 8 . 4 Constructs Created 6 | . . . . 2 1 1 . . . 1 . 1 Constructs Modified 5 | . . . . . 1 . 3 . 1 . . . Class Distribution -------------------- 52% | Mutant 20% | Construct 16% | Scavenger-Mutant 6% | Scout 3% | Assassin Dominant Class ---------------- Mutant | -10/Materials Mutant | -9/Materials Mutant | -9/Storage Scavenger-Mutant | -9/Recycling Mutant | -7/Factory Mutant | -7/Lower Caves Construct | -7/Lower Caves Construct | -7/Data Miner Mutant | -6/Proximity Caves Scout | -6/Factory Scout | -5/Factory Mutant | -5/DSF Resources | -11 -10 -9 -9 -9 -7 -7 -7 -7 -6 -6 -5 -5 ----------- Run | Yrd Mat Mat Sto Rec Fac Low Low Dat Pro Fac Fac DSF Matter Collected 2096 | 228 138 394 654 391 41 49 170 . 11 20 . . Remotely 142 | . . . 142 . . . . . . . . . Salvage Created 2431 | 20 171 391 980 411 308 . 107 . . 20 . 23 Parts 152 | 4 12 25 72 18 9 . 7 . . 2 . 3 Haulers Intercepted 3 | . 1 1 1 . . . . . . . . . Recyclers Shooed 2 | . . . 2 . . . . . . . . . Parts Field Recycled . | . . . . . . . . . . . . . Retrieved Matter . | . . . . . . . . . . . . . Parts Self-Destructed 8 | . . . . . . . 7 . 1 . . . Prevented . | . . . . . . . . . . . . . Kills | -11 -10 -9 -9 -9 -7 -7 -7 -7 -6 -6 -5 -5 ------- Run | Yrd Mat Mat Sto Rec Fac Low Low Dat Pro Fac Fac DSF Combat Hostiles Destroyed 52 | . 2 10 20 5 6 . 7 . . 1 . 1 Melee 4 | . . 1 . . 1 . . . . 1 . 1 Guns 37 | . 2 9 18 5 3 . . . . . . . Cannons 3 | . . . . . 2 . 1 . . . . . AOE 8 | . . . 2 . . . 6 . . . . . Classes Destroyed 15 | 1 3 3 3 3 1 . . . . . . 1 Worker 3 | . . 1 2 . . . . . . . . . Builder 4 | . . . 3 1 . . . . . . . . Tunneler 2 | 1 1 . . . . . . . . . . . Hauler 3 | . 1 1 1 . . . . . . . . . Recycler 1 | . . . . 1 . . . . . . . . Mechanic 1 | . . . . . 1 . . . . . . . Operator 1 | . . . 1 . . . . . . . . . Watcher 3 | . 1 . 2 . . . . . . . . . Swarmer 17 | . . 3 7 . . . 6 . . 1 . . Cutter 1 | . . . . . . . . . . . . 1 Grunt 15 | . 2 5 3 1 4 . . . . . . . Brawler 4 | . . 2 . . 2 . . . . . . . Sentry 11 | . . . 10 . . . 1 . . . . . Programmer 1 | . . . . 1 . . . . . . . . Scrapper 3 | . . . . 3 . . . . . . . . Best Kill Streak 6 | 1 2 6 5 2 2 . 3 . . 1 . 1 Combat Bots Only 6 | . 1 6 5 2 2 . 3 . . 1 . 1 Max Kills in Single Turn 3 | 1 1 1 3 2 2 . 2 . . 1 . 1 Gunslinging . | . . . . . . . . . . . . . Exploded 2 | . . . 2 . . . 2 . . . . . Melee 1 | . . 1 . . 1 . . . . 1 . 1 Uniques/NPCs Destroyed . | . . . . . . . . . . . . . Combat | -11 -10 -9 -9 -9 -7 -7 -7 -7 -6 -6 -5 -5 -------- Run | Yrd Mat Mat Sto Rec Fac Low Low Dat Pro Fac Fac DSF Hostile Shots Fired 580 | . 9 83 74 34 48 . 92 . 151 11 . 78 Missed 177 | . 2 24 17 4 13 . 34 . 59 4 . 20 Damage Taken 6227 | . 80 799 764 590 693 . 667 . 1092 103 . 1439 Core 1833 | . 10 106 20 118 161 . 91 . 267 13 . 1047 Absorbed by Shields 139 | . . . . . . . . . . . . 139 Regen/Repaired (Parts) 526 | . . . . . 312 97 77 . 40 . . . Core Remaining (%) 71 | 100 96 . . 39 . . . . 25 98 . . Volleys Fired 179 | 5 14 46 62 15 26 . 9 . 2 . . . Largest 2 | 2 2 2 2 2 2 . 2 . 1 . . . Hottest 68 | 40 40 50 68 68 66 . 66 . 23 . . . Shots Fired 335 | 10 28 85 116 31 52 . 11 . 2 . . . Gun 287 | 10 28 85 106 30 26 . 2 . . . . . Cannon 30 | . . . . . 26 . 2 . 2 . . . Launcher 18 | . . . 10 1 . . 7 . . . . . Special . | . . . . . . . . . . . . . Kinetic 317 | 10 28 85 106 30 52 . 4 . 2 . . . Thermal . | . . . . . . . . . . . . . Explosive 10 | . . . 2 1 . . 7 . . . . . Electromagnetic 8 | . . . 8 . . . . . . . . . Robot Hit Streak 26 | 10 8 8 26 12 9 . 8 . 1 . . . Robot Miss Streak 3 | . 2 2 2 2 2 . 2 . 3 . . . Penetration Max . | . . . . . . . . . . . . . Secondary Targets 1 | . . . . 1 . . . . . . . . Max Gunslinging Chain 1 | . . . . 1 . . . . . . . . Shots Hit Robots 224 | 10 17 57 71 21 36 . 7 . 1 3 . 1 Core Hits 98 | 3 7 19 36 10 13 . 8 . . 1 . 1 Critical Kills . | . . . . . . . . . . . . . Critical Parts Destroyed 2 | . . . . . 2 . . . . . . . Critical Strikes 5 | . . . . . 5 . . . . . . . Destroy 2 | . . . . . 2 . . . . . . . Blast 3 | . . . . . 3 . . . . . . . Melee Attacks 5 | . . . . . . . . . . 3 . 2 Impact 4 | . . . . . . . . . . 2 . 2 Slashing 1 | . . . . . . . . . . 1 . . Piercing . | . . . . . . . . . . . . . Sneak Attacks . | . . . . . . . . . . . . . Combat Hostiles . | . . . . . . . . . . . . . Follow-up Attacks . | . . . . . . . . . . . . . Damage Inflicted 4555 | 95 216 659 1498 423 790 . 671 . 30 130 . 43 Guns 2894 | 95 216 640 1246 365 312 . 20 . . . . . Cannons 445 | . . . . . 380 . 46 . 19 . . . Explosions 978 | . . . 248 57 68 . 605 . . . . . Melee 173 | . . . . . . . . . . 130 . 43 Ramming 65 | . . 19 4 1 30 . . . 11 . . . Kinetic 3339 | 95 216 640 1246 365 692 . 66 . 19 . . . Thermal 68 | . . . . . 68 . . . . . . . Explosive 795 | . . . 133 57 . . 605 . . . . . Electromagnetic 115 | . . . 115 . . . . . . . . . Impact 140 | . . . . . . . . . . 97 . 43 Slashing 33 | . . . . . . . . . . 33 . . Piercing . | . . . . . . . . . . . . . Highest Corruption 6 | . . 6 6 6 . . . . . . . 1 Average Corruption 5 | . . 5 6 6 . . . . . . . 1 Corruption Purged . | . . . . . . . . . . . . . Corruption Blocked . | . . . . . . . . . . . . . Effects 66 | . . 6 33 26 . . . . . . . 1 Message Errors 15 | . . . 11 3 . . . . . . . 1 Matter Fused 19 | . . 1 9 9 . . . . . . . . Heat Flow Errors 6 | . . 1 2 3 . . . . . . . . Energy Discharges 8 | . . 2 2 4 . . . . . . . . Data Loss (minor) 5 | . . 1 1 3 . . . . . . . . Data Loss (major) 5 | . . . 3 2 . . . . . . . . Misfires 4 | . . 1 2 1 . . . . . . . . Alerts 1 | . . . . 1 . . . . . . . . Weapon Failures 3 | . . . 3 . . . . . . . . . Overload Shots . | . . . . . . . . . . . . . Overflow Damage 123 | . . . 17 . 21 . 59 . . 26 . . Projectiles . | . . . . . . . . . . . . . Explosions 97 | . . . 17 . 21 . 59 . . . . . Melee 26 | . . . . . . . . . . 26 . . Knockbacks 6 | . . . . . 5 . . . . 1 . . Impact 1 | . . . . . . . . . . 1 . . Kinetic 5 | . . . . . 5 . . . . . . . Secondary . | . . . . . . . . . . . . . Self-Inflicted Damage 222 | . . . 74 49 99 . . . . . . . Shots 4 | . . . 2 1 1 . . . . . . . Rammed 19 | . . 6 1 1 4 . . . 7 . . . Targets Rammed 21 | . . 7 1 1 5 . . . 7 . . . Kicked . | . . . . . . . . . . . . . Crushed 2 | . . 1 . . 1 . . . . . . . Highest Temperature 386 | . 6 147 276 386 93 . 34 . . . . . Average Temperature 61 | . 6 26 59 141 26 . 19 . . . . . Received Heat Transfer 1292 | . 42 186 183 290 306 . 78 . 198 . . 9 Effects 2 | . . . . 2 . . . . . . . . Short Circuit 1 | . . . . 1 . . . . . . . . Damage (minor) 1 | . . . . 1 . . . . . . . . Siege Activations . | . . . . . . . . . . . . . Robots Corrupted . | . . . . . . . . . . . . . Combat Hostiles . | . . . . . . . . . . . . . Parts Fried 2 | . . . 2 . . . . . . . . . Impact Corruptions 1 | . . . . . . . . . . 1 . . Robots Melted . | . . . . . . . . . . . . . Combat Hostiles . | . . . . . . . . . . . . . Parts Melted 4 | . . . . 4 . . . . . . . . Heat Transferred 100 | . . . . . 100 . . . . . . . Parts Sabotaged . | . . . . . . . . . . . . . Parts Stolen . | . . . . . . . . . . . . . Parts Stripped . | . . . . . . . . . . . . . Power Chain Reactions 1 | . . . 1 . . . . . . . . . Alert | -11 -10 -9 -9 -9 -7 -7 -7 -7 -6 -6 -5 -5 ------- Run | Yrd Mat Mat Sto Rec Fac Low Low Dat Pro Fac Fac DSF Peak Influence 753 | 5 156 304 308 123 125 . . . . 753 224 161 Initial 752 | . 3 65 70 118 . . . . . 752 224 156 Average 178 | 1 88 167 152 75 49 . . . . 633 224 145 Maximum Alert Level 3 | . . 1 1 . . . . . . 3 1 . Low Security (%) 72 | 100 100 62 70 100 100 . . . . . . 100 Level 1 14 | . . 37 29 . . . . . . . 100 . Level 2 5 | . . . . . . . . . . 40 . . Level 3 7 | . . . . . . . . . . 59 . . Level 4 . | . . . . . . . . . . . . . Level 5 . | . . . . . . . . . . . . . High Security . | . . . . . . . . . . . . . Max Security . | . . . . . . . . . . . . . Squads Dispatched 5 | . 2 1 1 . . . . . . . . 1 Investigation . | . . . . . . . . . . . . . Extermination . | . . . . . . . . . . . . . Reinforcement 5 | . 2 1 1 . . . . . . . . 1 Assault . | . . . . . . . . . . . . . Garrison . | . . . . . . . . . . . . . Intercept . | . . . . . . . . . . . . . Searches Triggered 1 | . . . . . . . . . . 1 . . Construction Impeded . | . . . . . . . . . . . . . Haulers Reinforced . | . . . . . . . . . . . . . Active Scanning Responses . | . . . . . . . . . . . . . Cargo Convoy Interrupts . | . . . . . . . . . . . . . Stealth | -11 -10 -9 -9 -9 -7 -7 -7 -7 -6 -6 -5 -5 --------- Run | Yrd Mat Mat Sto Rec Fac Low Low Dat Pro Fac Fac DSF Distress Signals 3 | . 1 1 1 . . . . . . . . . Communications Jammed . | . . . . . . . . . . . . . Distress Signals . | . . . . . . . . . . . . . Times Spotted 107 | . 13 24 25 5 12 . 8 . 6 6 . 8 Peak Tracking Total 7 | . 3 7 6 4 3 . 3 . 2 5 . 7 Tactical Retreats 10 | . 1 1 2 . 2 . 1 . 1 1 . 1 Traps | -11 -10 -9 -9 -9 -7 -7 -7 -7 -6 -6 -5 -5 ------- Run | Yrd Mat Mat Sto Rec Fac Low Low Dat Pro Fac Fac DSF Traps Triggered 11 | . . . 4 . 1 . . . . 3 . 3 Indirectly 4 | . . . 4 . . . . . . . . . Trap Hack Attempts . | . . . . . . . . . . . . . Triggered . | . . . . . . . . . . . . . Disarmed . | . . . . . . . . . . . . . Reprogrammed . | . . . . . . . . . . . . . Reused . | . . . . . . . . . . . . . Traps Extracted . | . . . . . . . . . . . . . Installed . | . . . . . . . . . . . . . Triggered 3 | . . . . . . . 3 . . . . . Machines | -11 -10 -9 -9 -9 -7 -7 -7 -7 -6 -6 -5 -5 ---------- Run | Yrd Mat Mat Sto Rec Fac Low Low Dat Pro Fac Fac DSF Machines Disabled 6 | . . . 3 1 2 . . . . . . . Max in Single Turn 2 | . . . 1 1 2 . . . . . . . Garrison Access 2 | . . . 1 . 1 . . . . . . . Machines Repaired . | . . . . . . . . . . . . . Machines Dismantled . | . . . . . . . . . . . . . Machines Sabotaged . | . . . . . . . . . . . . . Overloaded Fab Kills . | . . . . . . . . . . . . . Hacking | -11 -10 -9 -9 -9 -7 -7 -7 -7 -6 -6 -5 -5 --------- Run | Yrd Mat Mat Sto Rec Fac Low Low Dat Pro Fac Fac DSF Machines Accessed 24 | . 2 3 5 2 3 2 . 4 . 2 1 . Terminals 12 | . 2 2 4 1 1 . . . . 1 1 . Fabricators 1 | . . . . . . . . . . 1 . . Repair Stations 1 | . . . . . 1 . . . . . . . Recycling Units 1 | . . 1 . . . . . . . . . . Scanalyzers . | . . . . . . . . . . . . . Garrison Access 2 | . . . 1 . 1 . . . . . . . Total Hacks 79 | . 5 6 11 5 7 7 . 30 . 6 2 . Successful 61 | . 2 6 4 5 5 7 . 30 . 1 1 . Failed 18 | . 3 . 7 . 2 . . . . 5 1 . Catastrophic 3 | . . . 2 . . . . . . 1 . . Database Lockouts . | . . . . . . . . . . . . . Manual 21 | . 5 5 3 3 3 . . . . 2 . . Terminals 28 | . 5 5 8 2 3 . . . . 3 2 . Fabricators 3 | . . . . . . . . . . 3 . . Repair Stations 2 | . . . . . 2 . . . . . . . Recycling Units 1 | . . 1 . . . . . . . . . . Scanalyzers . | . . . . . . . . . . . . . Garrison Access 5 | . . . 3 . 2 . . . . . . . Terminal Hacks 47 | . . 1 2 4 1 7 . 30 . 1 1 . Record 19 | . . . . 1 . 6 . 11 . 1 . . Part Schematic 9 | . . . . . . . . 9 . . . . Robot Schematic 7 | . . . . . . . . 7 . . . . Prototype ID Bank 3 | . . . . . . . . 3 . . . . Open Door 3 | . . . 2 . . 1 . . . . . . Open DSF 1 | . . . . . . . . . . . 1 . Branch Access Points 2 | . . 1 . . 1 . . . . . . . Terminal Index 1 | . . . . 1 . . . . . . . . Release Object 2 | . . . . 2 . . . . . . . . Fabricator Hacks . | . . . . . . . . . . . . . Repair Station Hacks 2 | . . . . . 2 . . . . . . . Scan Component 1 | . . . . . 1 . . . . . . . Repair 1 | . . . . . 1 . . . . . . . Recycling Unit Hacks 1 | . . 1 . . . . . . . . . . Report Inventory 1 | . . 1 . . . . . . . . . . Scanalyzer . | . . . . . . . . . . . . . Garrison Access Hacks 2 | . . . 1 . 1 . . . . . . . Seal Access 2 | . . . 1 . 1 . . . . . . . Unauthorized Hacks 9 | . 2 4 1 1 1 . . . . . . . Terminals 9 | . 2 4 1 1 1 . . . . . . . Track 2 | . . 1 . 1 . . . . . . . . Assimilate 1 | . . 1 . . . . . . . . . . Botnet 5 | . 2 1 1 . 1 . . . . . . . Operators 1 | . . 1 . . . . . . . . . . Fabricators . | . . . . . . . . . . . . . Repair Stations . | . . . . . . . . . . . . . Recycling Units . | . . . . . . . . . . . . . Scanalyzers . | . . . . . . . . . . . . . Garrison Access . | . . . . . . . . . . . . . Data Cores Recovered 1 | . . . 1 . . . . . . . . . Used . | . . . . . . . . . . . . . Hacking Detections 12 | . 1 2 4 1 2 . . . . 1 1 . Full Trace Events . | . . . . . . . . . . . . . Feedback Events . | . . . . . . . . . . . . . Feedback Blocked . | . . . . . . . . . . . . . Robot Schematics Acquired 7 | . . . . . . . . 7 . . . . Robots Built . | . . . . . . . . . . . . . Authchips . | . . . . . . . . . . . . . Time . | . . . . . . . . . . . . . Total Robot Build Rating . | . . . . . . . . . . . . . Part Schematics Acquired 9 | . . . . . . . . 9 . . . . Parts Built . | . . . . . . . . . . . . . Authchips . | . . . . . . . . . . . . . Time . | . . . . . . . . . . . . . Total Part Build Rating . | . . . . . . . . . . . . . Parts Repaired 1 | . . . . . 1 . . . . . . . Time 26 | . . . . . 26 . . . . . . . Parts Recycled . | . . . . . . . . . . . . . Recycled Matter . | . . . . . . . . . . . . . Retrieved Matter . | . . . . . . . . . . . . . Retrieved Components . | . . . . . . . . . . . . . Parts Scanalyzed . | . . . . . . . . . . . . . Part Schematics Acquired . | . . . . . . . . . . . . . Parts Damaged . | . . . . . . . . . . . . . Bothacking | -11 -10 -9 -9 -9 -7 -7 -7 -7 -6 -6 -5 -5 ------------ Run | Yrd Mat Mat Sto Rec Fac Low Low Dat Pro Fac Fac DSF Used RIF Installer . | . . . . . . . . . . . . . Robots Hacked . | . . . . . . . . . . . . . Non-combat . | . . . . . . . . . . . . . Combat . | . . . . . . . . . . . . . Robot Hacks Applied . | . . . . . . . . . . . . . Relay Couplers Released . | . . . . . . . . . . . . . Fabnet Peak Effective % . | . . . . . . . . . . . . . Robots Rewired 2 | . . . . 2 . . . . . . . . Allies Hacked . | . . . . . . . . . . . . . Hacks Repelled . | . . . . . . . . . . . . . Allies | -11 -10 -9 -9 -9 -7 -7 -7 -7 -6 -6 -5 -5 -------- Run | Yrd Mat Mat Sto Rec Fac Low Low Dat Pro Fac Fac DSF Total Allies 4 | . . 1 . 2 . . . . 1 . . . Largest Group 2 | . . 1 . 2 . . . . 1 . . . Highest-Rated Group 96 | . . 10 . 13 . . . . 96 . . . Highest-Rated Ally 96 | . . 10 . 8 . . . . 96 . . . Total Orders 5 | . . . 5 . . . . . . . . . EXPLORE 5 | . . . 5 . . . . . . . . . Ally Attacks 16 | . . . . 6 . . . . 10 . . . Total Damage 168 | . . . . 30 . . . . 138 . . . Kills 2 | . . . . . . . . . 2 . . . Allies Corrupted . | . . . . . . . . . . . . . Allies Melted . | . . . . . . . . . . . . . Intel | -11 -10 -9 -9 -9 -7 -7 -7 -7 -6 -6 -5 -5 ------- Run | Yrd Mat Mat Sto Rec Fac Low Low Dat Pro Fac Fac DSF Robot Analysis Total . | . . . . . . . . . . . . . Derelict Logs Recovered 3 | . . . . . . 1 1 . 1 . . . Drone Launches 10 | . . . 10 . . . . . . . . . Drone Recoveries . | . . . . . . . . . . . . . Exploration | -11 -10 -9 -9 -9 -7 -7 -7 -7 -6 -6 -5 -5 ------------- Run | Yrd Mat Mat Sto Rec Fac Low Low Dat Pro Fac Fac DSF Turns Passed 6600 | 138 326 470 1301 810 715 670 793 117 499 588 90 83 Spaces Moved 4241 | 74 162 188 610 447 384 396 515 81 310 811 169 94 Core 1128 | 8 . . . . . . . . 54 811 169 86 Treads 3105 | 66 162 188 610 447 384 396 515 81 256 . . . Legs . | . . . . . . . . . . . . . Wheels . | . . . . . . . . . . . . . Hover 8 | . . . . . . . . . . . . 8 Flight . | . . . . . . . . . . . . . Fastest Speed 47 | 50 160 160 160 160 160 160 110 110 50 50 50 47 Average Speed 132 | 148 160 160 167 163 160 160 147 110 143 63 50 55 Slowest Speed 240 | 160 160 160 240 240 160 160 240 110 208 200 50 150 Overloaded Moves . | . . . . . . . . . . . . . Propulsion Burnouts . | . . . . . . . . . . . . . Robots Hopped . | . . . . . . . . . . . . . Cave-ins Triggered . | . . . . . . . . . . . . . Exploration Rate (%) 41 | 4 23 16 89 51 13 54 72 70 58 13 3 74 Regions Visited 12 Branch Regions 6 Pre-discovered Areas 1 | . . . . . . . . 1 . . . . Known Exits Taken 7 | . . 1 . . 1 1 1 . 1 1 1 . Unknown Exits Taken 5 | 1 1 . 1 1 . . . 1 . . . . Scrap Searched 3 | . . . . . . 1 2 . . . . . Spaces Dug . | . . . . . . . . . . . . . Terrain Destroyed 163 | . . . 29 17 21 . 96 . . . . . Melee . | . . . . . . . . . . . . . Projectile . | . . . . . . . . . . . . . AOE 163 | . . . 29 17 21 . 96 . . . . . Terrain Rammed . | . . . . . . . . . . . . . Walls Destroyed . | . . . . . . . . . . . . . Machines Disabled . | . . . . . . . . . . . . . Actions | -11 -10 -9 -9 -9 -7 -7 -7 -7 -6 -6 -5 -5 --------- Run | Yrd Mat Mat Sto Rec Fac Low Low Dat Pro Fac Fac DSF Total 4959 | 90 203 279 821 510 444 434 537 109 356 879 175 122 Wait 277 | 1 22 25 88 4 22 33 9 29 35 8 . 1 Move 4229 | 73 161 187 609 446 383 395 514 80 309 810 168 94 Hop . | . . . . . . . . . . . . . Pick Up 41 | 3 5 7 13 1 5 2 1 . . 2 2 . Fast Attach 21 | 7 . . 6 1 2 . . . . 4 1 . Attach 28 | . . 4 5 7 1 1 2 . 2 2 . 4 Detach 8 | . . . 2 2 . 1 1 . . 1 1 . Swap 17 | 1 1 3 11 1 . . . . . . . . Drop 40 | . . . 19 10 . 2 1 . 1 4 3 . Fire 179 | 5 14 46 62 15 26 . 9 . 2 . . . Melee 5 | . . . . . . . . . . 3 . 2 Ram . | . . . . . . . . . . . . . Kick . | . . . . . . . . . . . . . Crush 21 | . . 7 1 1 5 . . . 7 . . . Escape Stasis 66 | . . . . . . . . . . 45 . 21 Rewire 22 | . . . . 22 . . . . . . . . Trap . | . . . . . . . . . . . . . Miscellaneous 5 | . . . 5 . . . . . . . . . Route ------- -11/Scrapyard -10/Materials -9/Materials (discovered 4 exits: Min x2 / *Sto x2) -9/Storage (discovered 2 exits: [*Mat] / *Rec) -9/Recycling -7/Factory (discovered 2 exits: *Low x2) -7/Lower Caves -7/Lower Caves (discovered 2 exits: *Fac / *Dat) -7/Data Miner -6/Proximity Caves -6/Factory (discovered 3 exits: *Fac x3) -5/Factory -5/DSF History --------- Turn | Location | Event 6 | -11/Scrapyard | Discovered new exit (range 15) 139 | -11/Scrapyard | Entered Materials 306 | -10/Materials | Build established: Mutant 327 | -10/Materials | Discovered new exit (range 3) 465 | -10/Materials | Entered another Materials area 465 | -9/Materials | Evolved 2 slots: Utility x2 769 | -9/Materials | Lost 3 parts (1p1u1w) 878 | -9/Materials | Identified exit to Mines 878 | -9/Materials | Identified exit to Storage 935 | -9/Materials | Entered Storage 1330 | -9/Storage | Lost 8 allies 1830 | -9/Storage | Discovered new exit (range 14) 2231 | -9/Storage | Used back door to open Recycling access 2231 | -9/Storage | Discovered new exit (range 4) 2236 | -9/Storage | Entered Recycling 2532 | -9/Recycling | Build established: Scavenger-Mutant 2653 | -9/Recycling | Discovered new exit (range 5) 2786 | -9/Recycling | Scanned before Scraplab entrance 2825 | -9/Recycling | Entered Scraplab 2841 | -9/Recycling | Discovered new exit (range 2) 2874 | -9/Recycling | Angered Scraplab inhabitants 2875 | -9/Recycling | Found Prototype Device 2875 | -9/Recycling | Identified Scrap Engine 2918 | -9/Recycling | Core integrity fell below 50% 3046 | -9/Recycling | Entered Factory 3046 | -7/Factory | Evolved 4 slots: Propulsion x2, Utility x1, Weapon x1 3267 | -7/Factory | Repaired Huge Storage Unit 3560 | -7/Factory | Build established: Mutant 3577 | -7/Factory | Identified exit to Lower Caves 3761 | -7/Factory | Entered Lower Caves 3769 | -7/Lower Caves | Learned location of 1 exit from Factory 4102 | -7/Lower Caves | Encountered a Warlord checkpoint 4302 | -7/Lower Caves | Learned Armory emergency access door positions 4302 | -7/Lower Caves | Learned Extension terminal intel 4364 | -7/Lower Caves | Discovered new exit (range 8) 4419 | -7/Lower Caves | Build established: Construct 4431 | -7/Lower Caves | Identified exit to Lower Caves 4431 | -7/Lower Caves | Entered another Lower Caves area 4432 | -7/Lower Caves | Identified exit to Factory 4651 | -7/Lower Caves | Attracted the attention of an 0b10 checkpoint 5076 | -7/Lower Caves | Spotted B-75 Beast 5208 | -7/Lower Caves | Discovered new exit (range 15) 5223 | -7/Lower Caves | Identified exit to Data Miner 5224 | -7/Lower Caves | Entered Data Miner 5224 | -7/Data Miner | Discovered new exit (range 6) 5245 | -7/Data Miner | Met Data Miner 5280 | -7/Data Miner | Learned location of Section 7 (-3) 5280 | -7/Data Miner | Acquired the access code to Warlord's prototype stash 5300 | -7/Data Miner | Received God Mode back door access code from Data Miner 5341 | -7/Data Miner | Entered Proximity Caves 5344 | -6/Proximity Caves | Learned Factory garrison access intel 5396 | -6/Proximity Caves | Spotted B-75 Beast 5438 | -6/Proximity Caves | Spotter reported a threat 5453 | -6/Proximity Caves | Spotter reported a threat 5506 | -6/Proximity Caves | Spotter reported a threat 5515 | -6/Proximity Caves | Core integrity fell below 50% 5542 | -6/Proximity Caves | Lost 3 parts (2n1w) 5748 | -6/Proximity Caves | Build established: Mutant 5765 | -6/Proximity Caves | Spotter reported a threat 5790 | -6/Proximity Caves | Attracted the attention of an 0b10 checkpoint 5815 | -6/Proximity Caves | Escorted by Enhanced Grunt 5818 | -6/Proximity Caves | Spotter reported a threat 5840 | -6/Proximity Caves | Entered Factory 5840 | -6/Factory | Evolved 2 slots: Utility x1, Weapon x1 5841 | -6/Factory | Identified exit to Factory 5843 | -6/Factory | Loaded intel: 4 garrison access locations 6190 | -6/Factory | Search patrols dispatched 6428 | -6/Factory | Entered another Factory area 6428 | -5/Factory | Evolved 2 slots: Propulsion x1, Utility x1 6518 | -5/Factory | Identified exit to DSF 6518 | -5/Factory | Entered DSF 6540 | -5/DSF | Additional patrols routed to DSF 6559 | -5/DSF | Core integrity fell below 50% 6591 | -5/DSF | Core integrity fell below 20% 6601 | -5/DSF | Destroyed by H-71 Marshal with Heavy Mass Driver Last Messages --------------- 06586_ Field strength at 4. 06586_ Stasis field depleted. 06586_ Hovering Antigrav-CIT Exoskeleton destroyed. 06587_ Triggered Stasis Trap. 06587_ A bubble of rippling energy engulfs the area. 06587_ Field strength at 94. 06588_ 5QNTDQYH6QJQZ<7CHPEHQG| 06588_ Field strength at 88. 06589_ Hvy. Flail severed. 06589_ Field strength at 72. 06590_ Field strength at 61. 06591_ Field strength at 55. 06592_ Field strength at 42. 06593_ Field strength at 29. 06594_ Field strength at 23. 06595_ Field strength at 12. 06596_ Stasis field depleted. 06598_ Matter Compressor severed. 06601_ Knocked back. 06601_ C-35 Carver knocked back. Map ----- +----------------------------------------------------+ | | | | | | | | | | | | | | | | | | | | | | | | | | | | | | | | | ?????????????????????????????????????????????????? | | ?????????????????????????????????????????????????? | | ?????????????????????????????????????????????????? | | ?????????????????????????????????????????????????? | | ??????????????????????????????????????""?????????? | | ?????????????????????????????????????#"#?????????? | | ????????????????????#########???????##"####??????? | | ????????????????????# % #########"""""#??????? | | ????????????????#!!!# # #!!##"""""#??????? | | ?????????? C @ c! / ""##"????? | | ?????????? c Y """""????? | | ?????????????#!!# ### # !#!!## ""###????? | | ????????????????#????## ###!!!#!!### ###??????? | | ????????????????????? *?##########[ ##???????? | | ????????????????????# *????????# *%]#???????? | | ????????????????????# *????????# = #???????? | | ????????????????????### #????????### ##???????? | | ????????????????????#!! !????????#!! !#???????? | | ????????????????????#!! !????????#!! !#???????? | | ?????????????????# ??!! !????????#!! !#???????? | | ????????????????##+??## #?########## ###??????? | | ????????????# ??#!!!?## ###===#===## #??????? | | ???????????## #!!!##A ##===#===## #??????? | | ??????????? !!#??????? | | ????????! H % !!#??????? | | ????????! % !!#??????? | | ???????? ?????#***## "#!!!#!!!## #??????? | | ???????? #?????????## ###!!!#!!!## #??????? | | ???????## #????????### #################??????? | | ????????! !????????#!! ]]#????????????????????? | | ????????! !????????#!! %]]#????????????????????? | | ????????! !????????#!! ]]#????????????????????? | | ???????## ##???????### %"##????????????????????? | | ???????#! !????????#!! #????????????????????? | +----------------------------------------------------+ Best States ------------- Heat Dissipation 40 Energy Generation 14 Energy Capacity 280 Matter Stores 450 Matter Capacity 550 Sight Range 20 Robot Scan Range 16 Terrain Scan Range 16 Terrain Scan Density 10 Armor Coverage 150 Evasion (%) 50 Targeting Accuracy 8 Recoil Reduction 3 Offensive Hacking 10 Item Schematics ----------------- Combat Drone Bay | -7/Data Miner | Free Lgt. Regenerative Plating | -7/Data Miner | Free Cld. Aerolev Unit | -7/Data Miner | Free Exp. Utility Shielding | -7/Data Miner | Free Imp. Heavy Machine Gun | -7/Data Miner | Free Gyrokinetic Inverter | -7/Data Miner | Free Imp. Thermal Shield | -7/Data Miner | Free Hyp. Gauss Cannon | -7/Data Miner | Free HERF Cannon | -7/Data Miner | Free Robot Schematics ------------------ P-60 Hacker | -7/Data Miner | Free Y-54 Guardian | -7/Data Miner | Free O-24 Administrator | -7/Data Miner | Free S-27 Virus | -7/Data Miner | Free M-22 Extractor | -7/Data Miner | Free R-10 Processor | -7/Data Miner | Free B-48 Gladiator | -7/Data Miner | Free Fabricated ------------ Nothing Alien Tech Used ----------------- None Achievements -------------- None Challenges ------------ None Game ------ Seed ChromaticNeutronSpiker Manual? 0 Play Time 01:14:02 Cumulative 61.2 hours Start 2024.08.21 @ 21:41:37 End 2024.08.22 @ 21:57:22 Sessions 3 Manual Loads 0 Difficulty Rogue Special Mode None Game No. 85 Rogue 85 Adventurer 0 Explorer 0 Win Type - Total 0 Types 0/0/0/0/0/0/0/0/0 Lore% 24 Gallery% 33 Achievement% 37 Wizard Run 0 Options --------- Layout 0 ASCII 0 Keyboard 0 Movement Arrows Keybinds 0 Fullscreen 2 Font 18/SmallcapsGlow Map View 76x50 Zoom Use 0% Tactical HUD 1 Map Filters NONE Filters NONE Steam 1 RUN: 870623e0-956d-4ac7-b600-2526a34675ad